fUST/lending_fUST_20260118
["ID","MTS","AMOUNT","RATE_DAILY","PERIOD"]
[402514110,1768691467153,-500.0,0.0001726,3]
[402514111,1768691467163,-500.0,0.0001726,3]
[402514112,1768691467173,-556.65,0.0001726,3]
[402514113,1768691467182,-500.0,0.0001726,3]
[402514114,1768691467191,-983.41,0.0001726,3]
[402514115,1768691467200,-500.0,0.0001726,3]
[402514116,1768691467210,-500.0,0.0001726,3]
[402514117,1768691467219,-500.0,0.0001726,3]
[402514118,1768691467228,-500.0,0.0001726,3]
[402514119,1768691467238,-542.29,0.0001726,3]
[402514120,1768691467247,-500.0,0.0001726,3]
[402514121,1768691467257,-500.0,0.0001726,3]
[402514122,1768691467266,-500.0,0.0001726,3]
[402514123,1768691467276,-500.0,0.0001726,3]
[402514124,1768691467286,-500.0,0.0001726,3]
[402514125,1768691467296,-798.42,0.0001726,3]
[402514126,1768691467305,-500.0,0.0001726,3]
[402514127,1768691467315,-546.04,0.0001726,3]
[402514128,1768691467325,-500.0,0.0001726,3]
[402514129,1768691467335,-922.41,0.0001726,3]
[402514130,1768691467344,-500.0,0.0001726,3]
[402514131,1768691467355,-500.0,0.0001726,3]
[402514132,1768691467364,-500.0,0.0001726,3]
[402514133,1768691467374,-500.0,0.0001726,3]
[402514134,1768691467383,-500.0,0.0001726,3]
[402514135,1768691467393,-970.72,0.0001726,3]
[402514136,1768691467404,-754.78,0.0001726,3]
[402514137,1768691467413,-500.0,0.0001726,3]
[402514138,1768691467423,-945.93,0.0001726,3]
[402514139,1768691467432,-210.5095372,0.0001726,3]
[402514140,1768691467441,-500.0,0.0001726,3]
[402514141,1768691467451,-824.14,0.0001726,3]
[402514142,1768691467460,-500.0,0.0001726,3]
[402514143,1768691467470,-546.17,0.0001726,3]
[402514144,1768691467480,-876.78,0.0001726,3]
[402514145,1768691467490,-500.0,0.0001726,3]
[402514146,1768691467499,-500.0,0.0001726,3]
[402514147,1768691467509,-500.0,0.0001726,3]
[402514148,1768691467520,-500.0,0.0001726,3]
[402514149,1768691467530,-617.55,0.0001726,3]
[402514150,1768691467540,-500.0,0.0001726,3]
[402514151,1768691467549,-510.15,0.0001726,3]
[402514152,1768691467559,-500.0,0.0001726,3]
[402514153,1768691467568,-913.35,0.0001726,3]
[402514154,1768691468049,-693.96,0.0001726,3]
[402514155,1768691468079,-234.44653758,0.0001726,3]
[402514156,1768691468098,-500.0,0.0001726,3]
[402514157,1768691468115,-500.0,0.0001726,3]
[402514158,1768691468125,-581.05,0.0001726,3]
[402514159,1768691468135,-500.0,0.0001726,3]
[402514160,1768691468145,-500.0,0.0001726,3]
[402514161,1768691468154,-917.71,0.0001726,3]
[402514162,1768691468164,-642.52947467,0.0001726,3]
[402514163,1768691468174,-916.67,0.0001726,3]
[402514164,1768691468184,-622.79807834,0.0001726,3]
[402514165,1768691468194,-500.0,0.0001726,3]
[402514166,1768691468203,-500.0,0.0001726,3]
[402514167,1768691468213,-1201.98,0.0001726,3]
[402514168,1768691468223,-500.0,0.0001726,3]
[402514169,1768691468233,-971.31,0.0001726,3]
[402514170,1768691468242,-605.08,0.0001726,3]
[402514171,1768691468255,-649.25,0.0001726,3]
[402514172,1768691468264,-500.0,0.0001726,3]
[402514173,1768691468273,-500.0,0.0001726,3]
[402514174,1768691468283,-500.0,0.0001726,3]
[402514175,1768691468292,-561.99,0.0001726,3]
[402514176,1768691468302,-500.0,0.0001726,3]
[402514177,1768691468311,-500.0,0.0001726,3]
[402514178,1768691468321,-500.0,0.0001726,3]
[402514179,1768691468330,-669.06,0.0001726,3]
[402514180,1768691468339,-500.0,0.0001726,3]
[402514181,1768691468349,-500.0,0.0001726,3]
[402514182,1768691468359,-347.44370923,0.0001726,3]
[402514183,1768691468368,-500.0,0.0001726,3]
[402514184,1768691468378,-1306.09,0.0001726,3]
[402514185,1768691468387,-500.0,0.0001726,3]
[402514186,1768691468396,-500.0,0.0001726,3]
[402514187,1768691468405,-1171.55,0.0001726,3]
[402514188,1768691468414,-500.0,0.0001726,3]
[402514189,1768691468423,-500.0,0.0001726,3]
[402514190,1768691468431,-500.0,0.0001726,3]
[402514191,1768691468440,-754.74,0.0001726,3]
[402514192,1768691468449,-500.0,0.0001726,3]
[402514193,1768691468458,-1510.73,0.0001726,3]
[402514194,1768691468467,-500.0,0.0001726,3]
[402514195,1768691468476,-500.0,0.0001726,3]
[402514196,1768691468486,-385.72,0.0001726,2]
[402514197,1768691468495,-524.22048595,0.0001726,3]
[402514198,1768691468504,-573.95,0.0001726,3]
[402514199,1768691468514,-553.34,0.0001726,3]
[402514200,1768691468523,-500.0,0.0001726,3]
[402514201,1768691468532,-414.84421385,0.0001726,3]
[402514202,1768691468548,-85.15578615,0.0001726,3]
[402514203,1768691468558,-500.0,0.0001726,3]
[402514204,1768691468568,-500.0,0.0001726,3]
[402514205,1768691468577,-500.0,0.0001726,3]
[402514206,1768691468587,-500.0,0.0001726,3]
[402514207,1768691468597,-1112.03394574,0.0001726,3]
[402514208,1768691468609,-323.36605426,0.0001726,3]
[402514209,1768691468618,-4.77684464,0.0001726,3]
[402514210,1768691468639,-340.45072079,0.00012659,2]
[402514211,1768691468649,-495.22315536,0.0001726,3]
[402514212,1768691468659,-536.7,0.0001726,3]
[402514213,1768691468674,-500.0,0.0001726,3]
[402514214,1768691468684,-1218.98,0.0001726,3]
[402514215,1768691468694,-833.25,0.0001726,3]
[402514216,1768691468703,-974.13,0.0001726,3]
[402514217,1768691468714,-500.0,0.0001726,3]
[402514218,1768691468724,-500.0,0.0001726,3]
[402514219,1768691468734,-500.0,0.0001726,3]
[402514220,1768691468744,-500.0,0.0001726,3]
[402514221,1768691468753,-500.0,0.0001726,3]
[402514222,1768691468763,-1075.71,0.0001726,3]
[402514223,1768691468772,-627.77,0.0001726,3]
[402514224,1768691468782,-500.0,0.0001726,3]
[402514225,1768691468791,-500.0,0.0001726,3]
[402514226,1768691468801,-1034.68,0.0001726,3]
[402514227,1768691468810,-500.0,0.0001726,3]
[402514228,1768691468819,-346.63907245,0.0001726,3]
[402514229,1768691468828,-1046.83,0.0001726,3]
[402514230,1768691468838,-500.0,0.0001726,3]
[402514231,1768691468849,-500.0,0.0001726,3]
[402514232,1768691468859,-500.0,0.0001726,3]
[402514233,1768691468869,-566.61,0.0001726,3]
[402514234,1768691468879,-565.41,0.0001726,3]
[402514235,1768691468889,-500.0,0.0001726,3]
[402514236,1768691468898,-500.0,0.0001726,3]
[402514237,1768691468908,-676.05,0.0001726,3]
[402514238,1768691468918,-500.0,0.0001726,3]
[402514239,1768691468929,-500.0,0.0001726,3]
[402514240,1768691468939,-500.0,0.0001726,3]
[402514241,1768691468949,-542.31,0.0001726,3]
[402514242,1768691468959,-1077.68,0.0001726,3]
[402514243,1768691468969,-1557.4,0.0001726,3]
[402514244,1768691468978,-500.0,0.0001726,3]
[402514245,1768691468988,-500.0,0.0001726,3]
[402514246,1768691468997,-703.91,0.0001726,3]
[402514247,1768691469007,-500.0,0.0001726,3]
[402514248,1768691469017,-504.82,0.0001726,3]
[402514249,1768691469027,-500.0,0.0001726,3]
[402514250,1768691469037,-500.0,0.0001726,3]
[402514251,1768691469046,-500.0,0.0001726,3]
[402514252,1768691469056,-500.0,0.0001726,3]
[402514253,1768691469065,-500.0,0.0001726,3]
[402514254,1768691469075,-500.0,0.0001726,3]
[402514255,1768691469085,-500.0,0.0001726,3]
[402514256,1768691469095,-507.91,0.0001726,3]
[402514257,1768691469104,-500.0,0.0001726,3]
[402514258,1768691469115,-603.28,0.0001726,3]
[402514259,1768691469125,-500.0,0.0001726,3]
[402514260,1768691469135,-606.02,0.0001726,3]
[402514261,1768691469144,-500.0,0.0001726,3]
[402514262,1768691469154,-638.05,0.0001726,3]
[402514263,1768691469164,-1795.21,0.0001726,3]
[402514264,1768691469174,-6092.67,0.0001726,3]
[402514265,1768691469183,-500.0,0.0001726,3]
[402514266,1768691469192,-1070.22,0.0001726,3]
[402514267,1768691469201,-500.0,0.0001726,3]
[402514268,1768691469210,-1263.09,0.0001726,3]
[402514269,1768691469219,-500.0,0.0001726,3]
[402514270,1768691469229,-685.26,0.0001726,3]
[402514271,1768691469238,-500.0,0.0001726,3]
[402514272,1768691469247,-500.0,0.0001726,3]
[402514273,1768691469256,-909.25,0.0001726,3]
[402514274,1768691469266,-1161.29,0.0001726,3]
[402514275,1768691469275,-500.0,0.0001726,3]
[402514276,1768691469287,-500.0,0.0001726,3]
[402514277,1768691469296,-500.0,0.0001726,3]
[402514278,1768691469306,-928.37,0.0001726,3]
[402514279,1768691469318,-500.0,0.0001726,3]
[402514280,1768691469328,-500.0,0.0001726,3]
[402514281,1768691469340,-500.0,0.0001726,3]
[402514282,1768691469350,-500.0,0.0001726,3]
[402514283,1768691469359,-500.0,0.0001726,3]
[402514284,1768691469371,-500.0,0.0001726,3]
[402514285,1768691469381,-1708.86,0.0001726,3]
[402514286,1768691469391,-500.0,0.0001726,3]
[402514287,1768691469400,-712.5,0.0001726,3]
[402514288,1768691469409,-500.0,0.0001726,3]
[402514289,1768691469418,-500.0,0.0001726,3]
[402514290,1768691469427,-500.0,0.0001726,3]
[402514291,1768691469436,-500.0,0.0001726,3]
[402514292,1768691469446,-500.0,0.0001726,3]
[402514293,1768691469457,-704.23,0.0001726,3]
[402514294,1768691469467,-500.0,0.0001726,3]
[402514295,1768691469477,-1052.52,0.0001726,3]
[402514296,1768691469486,-571.79,0.0001726,3]
[402514297,1768691469495,-298.357268,0.0001726,2]
[402514298,1768691469505,-500.0,0.0001726,3]
[402514299,1768691469515,-298.357268,0.0001726,2]
[402514300,1768691469524,-298.357268,0.0001726,2]
[402514301,1768691469533,-500.0,0.0001726,3]
[402514302,1768691469542,-298.357268,0.0001726,2]
[402514303,1768691469551,-636.57,0.0001726,3]
[402514304,1768691469560,-500.0,0.0001726,3]
[402514305,1768691469570,-1274.41,0.0001726,3]
[402514306,1768691469579,-500.0,0.0001726,3]
[402514307,1768691469588,-500.0,0.0001726,3]
[402514308,1768691469597,-1142.54,0.0001726,3]
[402514309,1768691469607,-500.0,0.0001726,3]
[402514310,1768691469616,-572.18,0.0001726,3]
[402514311,1768691469625,-1221.92,0.0001726,3]
[402514312,1768691469636,-500.0,0.0001726,3]
[402514313,1768691469645,-500.0,0.0001726,3]
[402514314,1768691469655,-500.0,0.0001726,3]
[402514315,1768691469665,-913.02,0.0001726,3]
[402514316,1768691469677,-500.0,0.0001726,3]
[402514317,1768691469687,-702.99,0.0001726,3]
[402514318,1768691469696,-437.89239693,0.0001726,3]
[402514319,1768691469706,-500.0,0.0001726,3]
[402514320,1768691469716,-500.0,0.0001726,3]
[402514321,1768691469726,-520.54,0.0001726,3]
[402514322,1768691469735,-790.18,0.0001726,3]
[402514323,1768691469746,-500.0,0.0001726,3]
[402514324,1768691469755,-836.42,0.0001726,3]
[402514325,1768691469765,-500.0,0.0001726,3]
[402514326,1768691469774,-500.0,0.0001726,3]
[402514327,1768691469784,-938.59,0.0001726,3]
[402514328,1768691469793,-990.52,0.0001726,3]
[402514329,1768691469802,-500.0,0.0001726,3]
[402514330,1768691469813,-184.00558895,0.0001726,3]
[402514331,1768691469822,-500.0,0.0001726,3]
[402514332,1768691469832,-666.3,0.0001726,3]
[402514333,1768691469841,-500.0,0.0001726,3]
[402514334,1768691469850,-500.0,0.0001726,3]
[402514335,1768691469859,-744.84,0.0001726,3]
[402514336,1768691469868,-500.0,0.0001726,3]
[402514337,1768691469878,-594.53,0.0001726,3]
[402514338,1768691469887,-1215.26,0.0001726,3]
[402514339,1768691469896,-856.73,0.0001726,3]
[402514340,1768691469906,-1021.5,0.0001726,3]
[402514341,1768691469915,-501.82,0.0001726,3]
[402514342,1768691469925,-500.0,0.0001726,3]
[402514343,1768691469934,-690.47,0.0001726,3]
[402514344,1768691469944,-500.0,0.0001726,3]
[402514345,1768691469953,-1042.34,0.0001726,3]
[402514346,1768691469962,-500.0,0.0001726,3]
[402514347,1768691469973,-2645.74,0.0001726,3]
[402514348,1768691469982,-852.82,0.0001726,3]
[402514349,1768691469991,-500.0,0.0001726,3]
[402514350,1768691470001,-11282.1,0.0001726,3]
[402514351,1768691470011,-500.0,0.0001726,3]
[402514352,1768691470020,-500.0,0.0001726,3]
[402514353,1768691470030,-2195.14,0.0001726,3]
[402514354,1768691470040,-500.0,0.0001726,3]
[402514355,1768691470050,-500.0,0.0001726,3]
[402514356,1768691470059,-576.96946358,0.0001726,3]
[402514357,1768691470068,-500.0,0.0001726,3]
[402514358,1768691470078,-715.41,0.0001726,3]
[402514359,1768691470087,-516.14,0.0001726,3]
[402514360,1768691470096,-500.0,0.0001726,3]
[402514361,1768691470105,-500.0,0.0001726,3]
[402514362,1768691470115,-1769.73,0.0001726,3]
[402514363,1768691470124,-860.34,0.0001726,3]
[402514364,1768691470134,-1000.0,0.0001726,2]
[402514365,1768691470144,-500.0,0.0001726,3]
[402514366,1768691470154,-521.93686507,0.0001726,3]
[402514367,1768691470163,-667.3,0.0001726,3]
[402514368,1768691470172,-726.73,0.0001726,3]
[402514369,1768691470182,-689.4,0.0001726,3]
[402514370,1768691470191,-500.0,0.0001726,3]
[402514371,1768691470200,-1022.32,0.0001726,3]
[402514372,1768691470210,-500.0,0.0001726,3]
[402514373,1768691470219,-1162.08,0.0001726,3]
[402514374,1768691470230,-923.99,0.0001726,3]
[402514375,1768691470240,-637.68,0.0001726,3]
[402514376,1768691470252,-500.0,0.0001726,3]
[402514377,1768691470262,-500.0,0.0001726,3]
[402514378,1768691470272,-500.0,0.0001726,3]
[402514379,1768691470282,-500.0,0.0001726,3]
[402514380,1768691470291,-500.0,0.0001726,3]
[402514381,1768691470300,-853.49,0.0001726,3]
[402514382,1768691470309,-500.0,0.0001726,3]
[402514383,1768691470319,-474.41001867,0.0001726,3]
[402514384,1768691470688,-262.0624995,0.00012659,2]
[402514385,1768691470699,-237.9375005,0.00012659,2]
[402514386,1768691470709,-500.0,0.00012659,2]
[402514387,1768691470718,-95.10319199,0.00012659,2]
[402514388,1768691470731,-404.89680801,0.00012659,2]
[402514389,1768691470740,-500.0,0.00012659,2]
[402514390,1768691470750,-190.31362454,0.00012659,2]
[402514391,1768691471120,-309.68637546,0.00012659,2]
[402514392,1768691471129,-500.0,0.00012659,2]
[402514393,1768691471139,-500.0,0.00012659,2]
[402514394,1768691471148,-68.9378059,0.00012659,2]
[402514395,1768691471158,-419.18467264,0.00012659,2]
[402514396,1768691471592,-11.87752146,0.00012659,2]
[402514397,1768691471602,-500.0,0.00016438,3]
[402514398,1768691471611,-169.03005193,0.00016438,3]
[402514399,1768691471623,-330.96994807,0.00016438,3]
[402514400,1768691471632,-500.0,0.00016438,3]
[402514401,1768691471642,-500.0,0.00016438,3]
[402514402,1768691471651,-110.91865378,0.00016438,3]
[402514403,1768691471663,-389.08134622,0.00016438,3]
[402514404,1768691471676,-180.29865376,0.00016438,3]
[402514405,1768691471688,-319.70134624,0.00016438,3]
[402514406,1768691471697,-500.0,0.00016438,3]
[402514407,1768691471707,-500.0,0.00016438,3]
[402514408,1768691471718,-500.0,0.00016712,3]
[402514409,1768691471727,-500.0,0.00016986,3]
[402514410,1768691471738,-25.58998133,0.0001726,3]
[402514411,1768691471747,-500.0,0.0001726,3]
[402514412,1768691471758,-500.0,0.0001726,3]
[402514413,1768691471767,-787.51580955,0.0001726,3]
[402514415,1768691570287,-704.07471349,0.00012169,2]
[402514416,1768691585289,-870.14,0.00012329,2]
[402514417,1768691585319,-725.12,0.00012329,2]
[402514418,1768691586536,604.26,0.00012329,2]
[402514419,1768691596976,503.55,0.00012329,2]
[402514420,1768691618890,-419.63,0.00012329,2]
[402514421,1768691618922,-349.69,0.00012329,2]
[402514422,1768691628469,291.41,0.00012329,2]
[402514423,1768691652448,-242.84,0.00012329,2]
[402514424,1768691652477,-202.37,0.00012329,2]
[402514425,1768691660221,168.64,0.00012329,2]
[402514426,1768691670877,843.21,0.00012329,2]
[402514427,1768691722521,-469.47057643,0.00012213,2]
[402514428,1768691792546,-5000.0,0.00012406,2]
[402514429,1768691844274,-500.0,0.00012486,2]
[402514430,1768691844302,-500.0,0.00012486,2]
[402514432,1768691912111,-200.0,0.00012486,2]
[402514434,1768692018844,-5000.0,0.00012383,2]
[402514435,1768692031555,0.01,0.00012383,2]
[402514436,1768692031580,4999.99,0.00012383,2]
[402514437,1768692052097,-2442.07,0.00012383,2]
[402514439,1768692055285,5000.0,0.00012259,2]
[402514440,1768692085624,-5000.0,0.00012259,2]
[402514441,1768692100759,-937.63,0.00012383,2]
[402514442,1768692101872,4962.35055311,0.00012259,2]
[402514443,1768692169954,1444.0,0.00026137,120]
[402514444,1768692171039,-362.96174176,0.00012227,2]
[402514445,1768692262582,-494.45256395,0.0001165,2]
[402514446,1768692265156,-10000.01,0.0001165,2]
[402514447,1768692265313,-10000.01,0.0001165,2]
[402514448,1768692265445,-10000.01,0.0001165,2]
[402514449,1768692274410,-2423.15558815,0.0001165,2]
[402514450,1768692274435,-5153.6988237,0.0001165,2]
[402514454,1768692516707,8270.19527429,7.3e-05,2]
[402514455,1768692528348,-1729.81472571,0.0001,2]
[402514456,1768692528627,-10000.01,0.0001,2]
[402514457,1768692529221,-150.75346675,0.0001,2]
[402514476,1768692632577,-4188.41309119,0.00012105,2]
[402514478,1768692632587,-448.93998633,0.00012227,2]
[402514480,1768692632597,-186.15943132,0.00012305,2]
[402514482,1768692632606,-300.0,0.00012558,2]
[402514484,1768692632615,-6107.53051783,0.00012559,2]
[402514486,1768692632630,-12618.95118737,0.00012559,2]
[402514531,1768692638173,-562.31420507,0.00012559,2]
[402514533,1768692638185,-2299.87787963,0.00012559,2]
[402514535,1768692638283,-978411.3262101,0.00012559,2]
[402514536,1768692638293,-172.135,0.00012658,2]
[402514537,1768692638303,-47036.25404695,0.00012659,2]
[402514538,1768692638313,-500.0,0.00012659,2]
[402514539,1768692638323,-151.0,0.000127,2]
[402514540,1768692638333,-151.0,0.000127,2]
[402514541,1768692638342,-151.0,0.000127,2]
[402514542,1768692638352,-151.0,0.000127,2]
[402514543,1768692638361,-151.0,0.000127,2]
[402514544,1768692638371,-151.0,0.000127,2]
[402514545,1768692638381,-151.0,0.000127,2]
[402514546,1768692638391,-151.0,0.000127,2]
[402514547,1768692638401,-151.0,0.000127,2]
[402514548,1768692638411,-151.0,0.000127,2]
[402514549,1768692638421,-151.0,0.000127,2]
[402514550,1768692638431,-151.0,0.000127,2]
[402514551,1768692638440,-151.0,0.000127,2]
[402514552,1768692638451,-151.0,0.000127,2]
[402514553,1768692638460,-151.0,0.000127,2]
[402514554,1768692638470,-151.0,0.000127,2]
[402514555,1768692638479,-151.0,0.000127,2]
[402514556,1768692638489,-151.0,0.000127,2]
[402514557,1768692638499,-151.0,0.000127,2]
[402514558,1768692638508,-151.0,0.000127,2]
[402514559,1768692638518,-151.0,0.000127,2]
[402514560,1768692638526,-151.0,0.000127,2]
[402514561,1768692638535,-151.0,0.000127,2]
[402514562,1768692638545,-151.0,0.000127,2]
[402514563,1768692638554,-151.0,0.000127,2]
[402514564,1768692638563,-151.0,0.000127,2]
[402514565,1768692638572,-151.0,0.000127,2]
[402514566,1768692638583,-151.0,0.000127,2]
[402514567,1768692638592,-151.0,0.000127,2]
[402514568,1768692638602,-151.0,0.000127,2]
[402514569,1768692638612,-494.39702115,0.00012933,2]
[402514570,1768692638622,-500.0,0.00013273,2]
[402514571,1768692638632,-535.62612034,0.00013273,2]
[402514572,1768692638642,-522.04357159,0.00013273,2]
[402514573,1768692638651,-500.0,0.00013273,2]
[402514574,1768692638661,-500.0,0.00013273,2]
[402514575,1768692638670,-500.0,0.00013273,2]
[402514576,1768692638679,-500.0,0.00013273,2]
[402514577,1768692638690,-502.83955258,0.00013273,2]
[402514578,1768692638700,-500.0,0.00013273,2]
[402514579,1768692638710,-500.0,0.00013273,2]
[402514580,1768692638721,-500.0,0.00013273,2]
[402514581,1768692638731,-500.0,0.00013273,2]
[402514582,1768692638741,-166.45896527,0.00013273,2]
[402514583,1768692638751,-453.71259255,0.00013273,2]
[402514584,1768692638761,-505.69222847,0.00013273,2]
[402514585,1768692638771,-500.0,0.00013273,2]
[402514586,1768692638781,-500.0,0.00013273,2]
[402514587,1768692638791,-500.33050607,0.00013273,2]
[402514588,1768692638801,-500.0,0.00013273,2]
[402514589,1768692638811,-210.95156953,0.00013273,2]
[402514590,1768692638822,-500.0,0.00013273,2]
[402514591,1768692638832,-601.16084877,0.00013273,2]
[402514592,1768692638842,-505.25947973,0.00013273,2]
[402514593,1768692638852,-500.0,0.00013273,2]
[402514594,1768692638862,-500.0,0.00013273,2]
[402514595,1768692638871,-500.0,0.00013273,2]
[402514596,1768692638881,-174.924236,0.00013506,2]
[402514597,1768692638891,-300.0,0.00013673,2]
[402514598,1768692638901,-428.49738369,0.00013698,2]
[402514599,1768692638911,-262.92795049,0.00013698,2]
[402514600,1768692638922,-500.0,0.00013698,2]
[402514601,1768692638932,-500.0,0.00013698,2]
[402514602,1768692638942,-500.0,0.00013698,2]
[402514603,1768692638952,-500.0,0.00013698,2]
[402514604,1768692638963,-567.1775226,0.00013698,2]
[402514605,1768692638974,-1000.0,0.00013698,2]
[402514606,1768692638984,-1000.0,0.00013698,2]
[402514607,1768692638995,-1000.0,0.00013698,2]
[402514608,1768692639006,-1000.0,0.00013698,2]
[402514609,1768692639017,-1000.0,0.00013698,2]
[402514610,1768692639027,-1000.0,0.00013698,2]
[402514611,1768692639038,-1000.0,0.00013698,2]
[402514612,1768692639048,-1019.17213815,0.00013698,2]
[402514613,1768692639058,-958.3,0.00013698,2]
[402514614,1768692639069,-958.3,0.00013698,2]
[402514615,1768692639079,-958.3,0.00013698,2]
[402514616,1768692639094,-958.3,0.00013698,2]
[402514617,1768692639104,-958.3,0.00013698,2]
[402514618,1768692639115,-958.3,0.00013698,2]
[402514619,1768692639126,-958.3,0.00013698,2]
[402514620,1768692639137,-958.3,0.00013698,2]
[402514621,1768692639146,-958.3,0.00013698,2]
[402514622,1768692639157,-958.3,0.00013698,2]
[402514623,1768692639167,-958.3,0.00013698,2]
[402514624,1768692639179,-958.3,0.00013698,2]
[402514625,1768692639191,-958.3,0.00013698,2]
[402514626,1768692639203,-958.3,0.00013698,2]
[402514627,1768692639214,-958.3,0.00013698,2]
[402514628,1768692639225,-958.3,0.00013698,2]
[402514629,1768692639235,-958.3,0.00013698,2]
[402514630,1768692639246,-958.3,0.00013698,2]
[402514631,1768692639256,-958.3,0.00013698,2]
[402514632,1768692639267,-958.3,0.00013698,2]
[402514633,1768692639277,-958.3,0.00013698,2]
[402514634,1768692639288,-958.3,0.00013698,2]
[402514635,1768692639298,-958.3,0.00013698,2]
[402514636,1768692639308,-958.38907998,0.00013698,2]
[402514637,1768692639319,-1515.22,0.00013698,2]
[402514638,1768692639329,-1515.22,0.00013698,2]
[402514639,1768692639340,-1515.22,0.00013698,2]
[402514640,1768692639350,-1515.22,0.00013698,2]
[402514641,1768692639360,-1515.22,0.00013698,2]
[402514642,1768692639370,-1515.22,0.00013698,2]
[402514643,1768692639380,-1515.22,0.00013698,2]
[402514644,1768692639390,-1515.22,0.00013698,2]
[402514645,1768692639400,-1515.22,0.00013698,2]
[402514646,1768692639410,-1515.22,0.00013698,2]
[402514647,1768692639420,-1515.22,0.00013698,2]
[402514648,1768692639431,-1515.22,0.00013698,2]
[402514649,1768692639441,-1515.22,0.00013698,2]
[402514650,1768692639451,-1515.22,0.00013698,2]
[402514651,1768692639461,-1515.22,0.00013698,2]
[402514652,1768692639471,-1515.22,0.00013698,2]
[402514653,1768692639481,-1515.22,0.00013698,2]
[402514654,1768692639491,-1515.22,0.00013698,2]
[402514655,1768692639501,-1515.22,0.00013698,2]
[402514656,1768692639511,-1515.22,0.00013698,2]
[402514657,1768692639521,-1515.22,0.00013698,2]
[402514658,1768692639531,-1515.22,0.00013698,2]
[402514659,1768692639540,-1515.22,0.00013698,2]
[402514660,1768692639550,-1515.40101919,0.00013698,2]
[402514661,1768692639560,-772.19,0.00013698,2]
[402514662,1768692639570,-772.19,0.00013698,2]
[402514663,1768692639580,-772.19,0.00013698,2]
[402514664,1768692639590,-772.19,0.00013698,2]
[402514665,1768692639600,-772.19,0.00013698,2]
[402514666,1768692639610,-772.19,0.00013698,2]
[402514667,1768692639620,-772.19,0.00013698,2]
[402514668,1768692639630,-772.19,0.00013698,2]
[402514669,1768692639640,-772.19,0.00013698,2]
[402514670,1768692639650,-772.19,0.00013698,2]
[402514671,1768692639661,-772.19,0.00013698,2]
[402514672,1768692639671,-772.19,0.00013698,2]
[402514673,1768692639680,-772.19,0.00013698,2]
[402514674,1768692639690,-772.19,0.00013698,2]
[402514675,1768692639700,-772.19,0.00013698,2]
[402514676,1768692639710,-772.19,0.00013698,2]
[402514677,1768692639720,-772.19,0.00013698,2]
[402514678,1768692639730,-772.19,0.00013698,2]
[402514679,1768692639740,-772.19,0.00013698,2]
[402514680,1768692639751,-772.19,0.00013698,2]
[402514681,1768692639762,-772.19,0.00013698,2]
[402514682,1768692639773,-772.19,0.00013698,2]
[402514683,1768692639784,-772.19,0.00013698,2]
[402514684,1768692639794,-772.23,0.00013698,2]
[402514685,1768692639805,-1325.75,0.00013698,2]